bitfinex-derivatives/quotes_BNBF0:USTF0_20250128
["timestamp","ask_amount","ask_price","bid_price","bid_amount"]
[1738034761791,0.29398794,680.3,679.19,0.29446841]
[1738034761991,0.24335047,680.29,679.19,0.29446841]
[1738034762184,0.29399658,680.28,679.19,0.29446841]
[1738034762384,0.24335047,680.27,679.19,0.29446841]
[1738034762588,0.29400523,680.26,679.19,0.29446841]
[1738034762791,0.24335047,680.25,679.19,0.29446841]
[1738034762992,0.2433516,680.24,679.19,0.29446841]
[1738034763192,0.2433516,680.23,679.19,0.29446841]
[1738034763395,1.10185282,680.16,679.19,0.29446841]
[1738034763691,0.2433516,680.15,679.19,0.29446841]
[1738034764296,1.10185282,680.16,679.19,0.29446841]
[1738034767496,0.29400523,680.26,679.19,0.29446841]
[1738034767692,0.24334387,680.25,679.19,0.29446841]
[1738034768299,0.29400523,680.26,679.19,0.29446841]
[1738034768500,0.24334958,680.25,679.19,0.29446841]
[1738034772702,0.24334958,680.25,678.77,1.10114767]
[1738034773101,0.24334958,680.25,678.78,0.29464627]
[1738034775604,0.53719372,680.24,678.78,0.29464627]
[1738034775803,0.24317985,680.23,678.78,0.29464627]
[1738034777500,0.29402252,680.22,678.78,0.29464627]
[1738034777701,0.24317985,680.21,678.78,0.29464627]
[1738034778500,0.29403116,680.2,678.79,1.53647472]
[1738034778704,0.24317985,680.19,678.79,1.53647472]
[1738034778905,0.29403981,680.18,678.79,1.53647472]
[1738034779102,0.24317985,680.17,678.79,1.53647472]
[1738034779507,0.2431387,680.16,678.79,1.53647472]
[1738034779708,0.2431387,680.15,678.79,1.53647472]
[1738034779907,0.2431387,680.17,678.79,1.53647472]
[1738034780708,0.53718283,680.17,678.79,1.53647472]
[1738034781008,0.2431387,680.16,678.79,1.53647472]
[1738034781708,0.29405278,680.15,678.79,1.53647472]
[1738034782013,0.2431387,680.14,678.8,0.27053365]
[1738034782312,0.29406142,680.13,678.79,1.53647472]
[1738034782507,0.2431387,680.12,678.79,1.53647472]
[1738034782703,0.29407007,680.11,678.79,1.53647472]
[1738034782906,0.24312348,680.1,678.79,1.53647472]
[1738034783302,0.29407872,680.09,678.79,1.53647472]
[1738034783712,0.24312348,680.08,678.79,1.53647472]
[1738034784104,0.29408737,680.07,678.79,1.53647472]
[1738034784309,0.24312348,680.06,678.79,1.53647472]
[1738034784510,0.29409602,680.05,678.79,1.53647472]
[1738034784906,0.24310541,680.04,678.79,1.53647472]
[1738034786908,0.29410467,680.03,678.79,1.53647472]
[1738034787110,0.24310541,680.02,678.79,1.53647472]
[1738034787908,1.10185282,679.95,678.79,1.53647472]
[1738034788111,0.24310541,679.94,678.79,1.53647472]
[1738034788305,1.10185282,679.95,678.79,1.53647472]
[1738034788507,0.24320918,679.94,678.79,1.53647472]
[1738034788711,0.24320918,679.94,678.78,0.29464627]
[1738034791112,0.24320918,680.02,678.78,0.29464627]
[1738034791305,0.5373225,680.01,678.78,0.29464627]
[1738034791506,0.53732682,680.0,678.78,0.29464627]
[1738034791710,0.53733115,679.99,678.78,0.29464627]
[1738034791912,0.53733547,679.98,678.78,0.29464627]
[1738034792112,0.24320918,679.97,678.78,0.29464627]
[1738034793313,0.29413494,679.96,678.78,0.29464627]
[1738034793511,0.24320918,679.95,678.78,0.29464627]
[1738034795812,0.2941436,679.94,678.78,0.29464627]
[1738034796008,0.24320918,679.93,678.78,0.29464627]
[1738034796213,0.29415225,679.92,678.78,0.29464627]
[1738034796412,0.24320918,679.91,678.78,0.29464627]
[1738034798517,0.2941609,679.9,678.21,1.10114767]
[1738034798916,0.2941609,679.9,678.22,0.29488956]
[1738034799218,0.2941609,679.9,678.22,1.83213349]
[1738034800514,0.2430345,679.89,678.22,1.83213349]
[1738034800817,0.29416955,679.88,678.22,1.83213349]
[1738034805526,0.24296259,679.87,678.22,1.83213349]
[1738034805726,0.29417821,679.86,678.22,1.83213349]
[1738034805922,1.83154664,679.86,678.22,1.83213349]
[1738034806723,0.242956,679.85,678.22,1.83213349]
[1738034807525,0.53714815,679.84,678.22,1.83213349]
[1738034807725,0.24296129,679.83,678.22,1.83213349]
[1738034808428,0.29419552,679.82,678.22,1.83213349]
[1738034808625,0.24296129,679.81,678.22,1.83213349]
[1738034808826,0.29420417,679.8,678.22,1.83213349]
[1738034809027,0.24296129,679.79,678.22,1.83213349]
[1738034809227,0.29420417,679.8,678.22,1.83213349]
[1738034809429,0.24297378,679.79,678.22,1.83213349]
[1738034809630,0.29421283,679.78,678.22,1.83213349]
[1738034809826,0.24297378,679.77,678.22,1.83213349]
[1738034810225,0.29422148,679.76,678.22,1.83213349]
[1738034811530,0.24298917,679.75,678.22,1.83213349]
[1738034811931,0.29423014,679.74,678.22,1.83213349]
[1738034812130,0.24298917,679.73,678.22,1.83213349]
[1738034812326,0.29423014,679.74,678.22,1.83213349]
[1738034812731,0.24300483,679.73,678.22,1.83213349]
[1738034813032,0.29423014,679.74,678.22,1.83213349]
[1738034813432,0.24300782,679.73,678.23,0.2706762]
[1738034813632,0.24300782,679.73,678.24,0.29488086]
[1738034813834,0.24300782,679.73,678.25,0.2706762]
[1738034814327,0.29423014,679.74,678.25,0.2706762]
[1738034814725,0.29423014,679.74,678.27,0.29486782]
[1738034814926,0.29423014,679.74,678.28,0.2706762]
[1738034815125,0.29423014,679.74,678.3,0.29485478]
[1738034815331,0.29423014,679.74,678.31,0.2706762]
[1738034815626,0.29423014,679.74,678.33,0.29484174]
[1738034815829,0.29423014,679.74,678.34,0.2706762]
[1738034816031,0.29423014,679.74,678.35,0.29483305]
[1738034816232,0.29423014,679.74,678.36,0.2706762]
[1738034816431,0.29423014,679.74,678.37,0.29482435]
[1738034816632,0.29423014,679.74,678.38,0.2706762]
[1738034816832,0.29423014,679.74,678.39,0.29481566]
[1738034817131,0.29423014,679.74,678.4,0.2706762]
[1738034817334,0.29423014,679.74,678.41,0.29480697]
[1738034817528,0.29423014,679.74,678.42,0.2706762]
[1738034817735,0.29423014,679.74,678.43,0.29479828]
[1738034818034,0.29423014,679.74,678.44,0.2706762]
[1738034818335,0.29423014,679.74,678.45,0.29478959]
[1738034818532,0.29423014,679.74,678.46,0.2706762]
[1738034819031,0.29423014,679.74,678.47,0.2947809]
[1738034819231,0.29423014,679.74,678.48,0.2706762]
[1738034819437,0.29423014,679.74,678.49,0.29477221]
[1738034819735,0.29423014,679.74,678.5,0.2706762]
[1738034820230,0.29423014,679.74,678.51,0.29476352]
[1738034820430,0.29423014,679.74,678.52,0.2706762]
[1738034820629,0.29423014,679.74,678.53,0.29475483]
[1738034820833,0.29423014,679.74,678.54,0.2706762]
[1738034824138,0.24307574,679.73,678.54,0.2706762]
[1738034824737,0.29423014,679.74,678.55,0.29474614]
[1738034824938,0.29423014,679.74,678.56,0.2706762]
[1738034825132,0.29423014,679.74,678.57,0.29473746]
[1738034825336,0.29423014,679.74,678.58,0.2706762]
[1738034825538,0.29423014,679.74,678.59,0.27057811]
[1738034825741,0.29423014,679.74,678.58,0.27057811]
[1738034825939,0.29423014,679.74,678.59,0.27057811]
[1738034826141,0.29423014,679.74,678.58,0.27057811]
[1738034826336,0.29423014,679.74,678.59,0.27057811]
[1738034826537,0.2430665,679.73,678.58,0.27057811]
[1738034826742,0.2430665,679.73,678.59,0.27057811]
[1738034827042,0.2430665,679.73,678.6,0.27057811]
[1738034827246,0.2430665,679.73,678.58,0.27057811]
[1738034827544,0.2430665,679.73,678.59,0.27057811]
[1738034827842,0.2430665,679.73,678.6,0.27057811]
[1738034828042,0.2430665,679.73,678.58,0.27057811]
[1738034828243,0.2430665,679.73,678.59,0.27057811]
[1738034828442,0.2430665,679.73,678.57,0.29473746]
[1738034828443,0.2430665,679.73,678.6,0.27057811]
[1738034828742,0.2430665,679.73,678.57,0.29473746]
[1738034828743,0.2430665,679.73,678.61,0.27057811]
[1738034829140,0.2430665,679.73,678.62,0.27057811]
[1738034829442,0.2430665,679.73,678.63,0.27057811]
[1738034829742,0.2430665,679.73,678.64,0.27057811]
[1738034829942,0.2430665,679.73,678.65,0.27057811]
[1738034830142,0.2430665,679.73,678.57,0.29473746]
[1738034830342,0.2430665,679.73,678.58,0.27058868]
[1738034832340,0.2430665,679.73,678.57,0.29473746]
[1738034832341,0.2942388,679.72,678.57,0.29473746]
[1738034834040,0.2942388,679.72,678.38,1.53675743]
[1738034838846,0.2942388,679.72,677.45,1.10114767]
[1738034839046,0.2942388,679.72,677.56,0.29517681]
[1738034839243,0.2942388,679.72,677.57,0.27076405]
[1738034839747,0.2942388,679.72,677.67,0.29512889]
[1738034841247,0.2942388,679.72,677.68,1.53803091]
[1738034842249,0.2428543,679.71,677.7,0.29511583]
[1738034842546,0.29424746,679.7,677.71,0.27075965]
[1738034842746,0.2428543,679.69,677.73,0.29510276]
[1738034842942,0.29425612,679.68,677.74,0.27075965]
[1738034843148,0.29425612,679.68,677.76,0.2950897]
[1738034843149,0.2428543,679.67,677.76,0.2950897]
[1738034843446,0.2428543,679.67,677.77,0.27075965]
[1738034844044,0.2428543,679.67,677.79,0.29507664]
[1738034844244,0.29426477,679.66,677.8,0.27075965]
[1738034844447,0.2428543,679.65,677.82,0.29506358]
[1738034844647,0.2428543,679.65,677.83,0.27075965]
[1738034844648,0.29427343,679.64,677.83,0.27075965]
[1738034844846,0.2428543,679.63,677.83,0.27075965]
[1738034845848,0.24283045,679.62,677.84,0.27077082]
[1738034846048,0.24283045,679.63,677.83,0.27077082]
[1738034846249,0.24283045,679.62,677.85,0.29505052]
[1738034846449,0.29428209,679.62,677.86,0.27077082]
[1738034846750,0.24283045,679.61,677.88,0.29503746]
[1738034846947,0.29429075,679.6,677.89,0.27077082]
[1738034847156,0.24283045,679.59,677.91,0.29502441]
[1738034847347,0.29429942,679.58,677.92,0.27077082]
[1738034847544,0.29429942,679.58,677.93,0.56579126]
[1738034847745,0.24282747,679.57,677.94,0.56578691]
[1738034847951,0.29430808,679.56,677.95,0.56578256]
[1738034848145,0.24282747,679.55,677.96,0.56577821]
[1738034848348,0.29431674,679.54,677.97,0.56577386]
[1738034848552,0.24282747,679.53,677.98,0.56576951]
[1738034848749,0.2943254,679.52,677.99,0.56576516]
[1738034848950,0.2943254,679.52,677.68,1.53803091]
[1738034848951,0.24282747,679.51,678.0,0.56576081]
[1738034849150,0.29433406,679.5,678.01,0.56575645]
[1738034849349,0.29433406,679.5,678.02,0.29497654]
[1738034849550,0.24282655,679.49,678.03,0.27077777]
[1738034849748,0.29434273,679.48,678.04,0.29496784]
[1738034849952,0.24282655,679.47,678.05,0.27077777]
[1738034850154,0.29435139,679.46,678.06,0.29495914]
[1738034850453,0.24282655,679.45,678.07,0.27077777]
[1738034855060,0.2428131,679.44,678.08,0.27077811]
[1738034855260,0.2428131,679.45,678.07,0.27077811]
[1738034855459,0.2428131,679.44,678.08,0.27077811]
[1738034855658,0.2428131,679.45,678.07,0.27077811]
[1738034855860,0.2428131,679.44,678.08,0.27077811]
[1738034856058,0.2428131,679.45,678.07,0.27077811]
[1738034856359,0.2428131,679.44,678.08,0.27077811]
[1738034856559,0.2428131,679.45,678.07,0.27077811]
[1738034856754,0.2428131,679.44,678.08,0.27077811]
[1738034856959,0.2428131,679.43,678.09,0.27077811]
[1738034857156,0.2428131,679.42,678.07,0.27077811]
[1738034857358,0.2428131,679.41,678.08,0.27077811]
[1738034857559,0.2428131,679.4,678.09,0.27077811]
[1738034857861,0.2428131,679.39,678.1,0.27077811]
[1738034858060,0.2428131,679.45,678.07,0.27077811]
[1738034858263,0.2428131,679.44,678.08,0.27077811]
[1738034858658,0.29435139,679.46,678.06,0.29495914]
[1738034858854,0.24280966,679.45,678.07,0.2707873]
[1738034859256,0.29435139,679.46,678.06,0.29495914]
[1738034860162,0.24283391,679.45,678.07,0.27078529]
[1738034860660,0.29435139,679.46,678.06,0.29495914]
[1738034860856,0.24283355,679.45,678.07,0.27078883]
[1738034861456,0.29436006,679.44,678.07,0.27078883]
[1738034861660,0.24283355,679.43,678.07,0.27078883]
[1738034864465,0.24279904,679.42,678.08,0.27079654]
[1738034864764,0.24279904,679.41,678.09,0.27079654]
[1738034864964,0.24279904,679.43,678.07,0.27079654]
[1738034865166,0.24279904,679.42,678.08,0.27079654]
[1738034865358,0.24279904,679.43,678.07,0.27079654]
[1738034865767,0.53716343,679.43,678.07,0.27079654]
[1738034865966,0.24279904,679.42,678.07,0.27079654]
[1738034866967,1.10185282,679.39,678.07,0.27079654]
[1738034867164,0.24279904,679.38,678.07,0.27079654]
[1738034868471,0.24280218,679.37,678.08,0.27079215]
[1738034868671,0.24280218,679.38,678.07,0.27079215]
[1738034868865,0.24280218,679.37,678.08,0.27079215]
[1738034869070,0.24280218,679.37,678.06,0.29495914]
[1738034869071,0.24280218,679.38,678.07,0.27079215]
[1738034869369,0.24280218,679.37,678.08,0.27079215]
[1738034869571,0.24280218,679.36,678.09,0.27079215]
[1738034869768,0.24280218,679.38,678.07,0.27079215]
[1738034869965,0.24281493,679.37,678.08,0.27079169]
[1738034870170,0.29436439,679.43,678.06,0.29495914]
[1738034870171,1.10185282,679.2,678.09,0.27079169]
[1738034870372,1.10185282,679.2,678.06,0.29495914]
[1738034870373,0.24281493,679.19,678.07,0.27079169]
[1738034870672,0.24281493,679.19,678.08,0.27079169]
[1738034870872,0.24281493,679.19,678.07,0.27079169]
[1738034871072,0.24281493,679.19,678.08,0.27079169]
[1738034871271,0.24281493,679.19,678.06,0.29495914]
[1738034871272,0.24281493,679.19,678.07,0.27079169]
[1738034871667,0.24277664,679.18,678.08,0.27079316]
[1738034871863,0.24277664,679.18,678.06,0.29495914]
[1738034871864,0.24277664,679.17,678.09,0.27079316]
[1738034872066,0.24277664,679.19,678.07,0.27079316]
[1738034872267,0.24277664,679.19,678.06,0.29495914]
[1738034872268,0.24277664,679.18,678.08,0.27079316]
[1738034872467,0.24277664,679.19,678.07,0.27079316]
[1738034873169,0.24274865,679.18,678.08,0.27079587]
[1738034873375,1.10185282,679.1,678.14,1.10114767]
[1738034873570,1.10185282,679.1,678.15,0.27079499]
[1738034876674,1.10185282,679.08,678.17,1.10114767]
[1738034876873,1.10185282,679.08,678.18,0.27079499]
[1738034877069,1.10185282,679.08,678.19,0.27079451]
[1738034877273,1.10185282,679.08,678.18,0.27079451]
[1738034877471,1.10185282,679.08,678.19,0.27079451]
[1738034877672,1.10185282,679.08,678.2,0.27079451]
[1738034877974,1.10185282,679.08,678.21,0.27079451]
[1738034878174,1.10185282,679.08,678.22,0.27079451]
[1738034878475,1.10185282,679.08,678.17,1.10114767]
[1738034878673,1.10185282,679.08,678.18,0.27079546]
[1738034879975,1.10185282,679.06,678.19,1.10114767]
[1738034880277,1.10185282,679.06,678.2,0.27079546]
[1738034880677,1.10185282,679.06,678.19,1.10114767]
[1738034880879,1.10185282,679.06,678.2,0.27079184]
[1738034883178,1.10185282,679.05,678.21,1.10114767]
[1738034883379,1.10185282,679.05,678.22,0.27079184]
[1738034884074,1.10185282,679.05,678.21,1.10114767]
[1738034884678,1.10185282,679.05,678.22,0.27079556]
[1738034884879,1.10185282,679.05,678.21,1.10114767]
[1738034885179,1.10185282,679.05,678.22,0.27079487]
[1738034886180,1.10185282,679.05,678.21,1.10114767]
[1738034886381,1.10185282,679.03,678.2,1.10114767]
[1738034886581,1.10185282,679.03,678.21,0.27079723]
[1738034889174,1.10185282,679.03,678.2,1.10114767]
[1738034889779,1.10185282,679.02,678.2,1.10114767]
[1738034890481,1.10185282,679.02,678.21,0.27079527]
[1738034891274,1.10185282,679.02,678.2,1.10114767]
[1738034891580,1.10185282,679.02,678.21,0.27079507]
[1738034893183,1.10185282,679.02,678.21,1.37194274]
[1738034893383,1.10185282,679.02,678.21,1.10114767]
[1738034907295,1.10185282,679.02,678.22,0.27078614]
[1738034912896,1.10185282,679.04,678.27,1.10114767]
[1738034920595,1.10185282,679.22,678.22,0.27078614]
[1738034920798,1.10185282,679.34,678.22,0.27078614]
[1738034924201,1.10185282,679.2,678.22,0.27078614]
[1738034925301,1.10185282,679.2,678.06,0.29495914]
[1738034925503,1.10185282,679.2,678.07,0.27078096]
[1738034927502,1.10185282,679.24,678.07,1.37192863]
[1738034927701,1.10185282,679.24,678.08,0.27078096]
[1738034929998,1.10185282,679.24,678.07,1.10114767]
[1738034930408,1.10185282,679.24,678.08,0.27078597]
[1738034930705,0.29436439,679.43,678.08,0.27078597]
[1738034930706,1.10185282,679.25,678.08,0.27078597]
[1738034931804,1.10185282,679.25,678.07,1.10114767]
[1738034932707,0.24282804,679.24,678.08,0.27078824]
[1738034933309,1.34468086,679.24,678.08,0.27078824]
[1738034933504,0.24282804,679.23,678.07,0.27078824]
[1738034933702,0.24282804,679.23,678.09,0.27078824]
[1738034934010,0.24282804,679.23,678.1,0.27078824]
[1738034934200,0.24282804,679.23,678.11,0.27078824]
[1738034934405,0.24282804,679.23,678.12,0.27078824]
[1738034934705,0.24282804,679.23,678.13,0.27078824]
[1738034934905,0.24282804,679.23,678.07,0.27078824]
[1738034935107,0.24282804,679.23,678.08,0.27078824]
[1738034935302,1.10185282,679.24,678.06,0.29495914]
[1738034935503,0.24283753,679.23,678.07,0.27078226]
[1738034936306,1.10185282,679.18,678.11,1.10114767]
[1738034936610,0.24283753,679.17,678.12,0.27078226]
[1738034937007,1.10185282,679.18,678.11,1.10114767]
[1738034940419,0.29436439,679.43,678.1,1.53809889]
[1738034946118,0.29436439,679.43,678.11,0.29493739]
[1738034946914,0.24279812,679.42,678.12,0.27077963]
[1738034947119,0.24279812,679.42,678.13,0.2949287]
[1738034949223,0.24279812,679.42,678.14,0.27077351]
[1738034949424,1.10185282,679.23,678.14,0.27077351]
[1738034949921,1.10185282,679.23,678.13,0.2949287]
[1738034951025,1.10185282,679.23,678.14,0.27077849]
[1738034951622,1.10185282,679.23,678.13,0.2949287]
[1738034952220,1.10185282,679.21,678.13,0.2949287]
[1738034956834,1.10185282,679.27,678.13,0.2949287]
[1738034961337,1.10185282,679.2,678.13,0.2949287]
[1738034961537,1.10185282,679.2,678.14,0.27075402]
[1738034961738,1.10185282,679.2,678.15,0.29492]
[1738034962031,1.10185282,679.2,678.16,0.27075402]
[1738034962238,1.10185282,679.2,678.17,0.2949113]
[1738034962432,1.10185282,679.2,678.18,0.2707518]
[1738034964334,1.10185282,679.28,678.18,0.2707518]
[1738034965339,1.10185282,679.28,678.17,1.39605897]
[1738034965539,1.10185282,679.28,678.18,0.2707499]
[1738034967643,0.29436439,679.43,678.18,0.2707499]
[1738034967644,1.10185282,679.3,678.18,0.2707499]
[1738034970046,1.10185282,679.3,678.19,0.27074403]
[1738034970240,1.10185282,679.3,678.2,0.27074403]
[1738034970439,0.24274605,679.29,678.21,0.27074403]
[1738034970642,0.24274605,679.29,678.22,0.27074403]
[1738034970842,0.24274605,679.29,678.18,0.27074403]
[1738034971039,0.24274605,679.29,678.19,0.27074403]
[1738034971343,0.24274605,679.29,678.2,0.27074403]
[1738034971643,1.10185282,679.32,678.17,0.2949113]
[1738034971843,0.2427483,679.31,678.18,0.27074335]
[1738034972548,1.10185282,679.32,678.19,0.2949026]
[1738034972747,1.10185282,679.32,678.2,0.27074335]
[1738034972948,1.10185282,679.32,678.2,0.56564161]
[1738034973242,1.10185282,679.32,678.21,0.27074335]
[1738034974749,1.10185282,679.37,678.22,1.10114767]
[1738034974949,0.24274825,679.36,678.23,0.27074335]
[1738034975847,0.24274825,679.36,678.24,0.29488086]
[1738034976043,1.10185282,679.37,678.25,0.27074335]
[1738034977252,1.10185282,679.37,678.26,0.2707149]
[1738034977452,1.10185282,679.37,678.25,0.2707149]
[1738034977751,0.29436439,679.43,678.25,0.2707149]
[1738034977752,1.10185282,679.32,678.25,0.2707149]
[1738034979448,1.10185282,679.32,678.25,0.56559142]
[1738034979652,1.10185282,679.32,678.26,0.2707149]
[1738034980655,1.10185282,679.42,678.26,0.2707149]
[1738034980857,0.24274679,679.41,678.26,0.2707149]
[1738034981556,1.10185282,679.42,678.26,0.2707149]
[1738034982056,1.10185282,679.42,678.25,1.39602419]
[1738034984758,0.29436439,679.43,678.25,0.29487652]
[1738034992060,0.29436439,679.43,678.26,0.2706857]
[1738034992454,0.29436439,679.43,678.27,0.29486782]
[1738034995461,0.29436439,679.43,678.28,0.27067977]
[1738034995758,0.29436439,679.43,678.29,0.29485913]
[1738034995954,0.29436439,679.43,678.3,0.27067977]
[1738034996154,0.29436439,679.43,678.31,0.29485043]
[1738034996360,0.29436439,679.43,678.32,0.27067977]
[1738034996557,0.29436439,679.43,678.33,0.29484174]
[1738034996758,0.29436439,679.43,678.34,0.27067977]
[1738034998665,0.29436439,679.43,678.33,0.29484174]
[1738034998866,0.29436439,679.43,678.34,0.27069265]
[1738034999368,0.24275939,679.42,678.34,0.27069265]
[1738034999566,0.24275596,679.41,678.35,0.27068993]
[1738034999766,0.24275596,679.42,678.34,0.27068993]
[1738034999967,0.29436439,679.43,678.35,0.27068993]
[1738035000169,0.24276243,679.42,678.34,0.27068993]
[1738035000361,0.24276243,679.42,678.35,0.27068993]
[1738035000668,0.24276243,679.42,678.34,0.27068993]
[1738035000865,0.24276243,679.42,678.35,0.27068993]
[1738035001068,0.24276243,679.42,678.36,0.27068993]
[1738035001267,0.24276243,679.42,678.37,0.27068993]
[1738035001460,0.24276243,679.42,678.38,0.27068993]
[1738035001665,0.24276243,679.42,678.34,0.27068993]
[1738035001861,0.24276243,679.42,678.35,0.27068993]
[1738035002063,0.24276243,679.42,678.34,0.27068993]
[1738035002266,0.24276243,679.42,678.35,0.27068993]
[1738035002467,0.24276738,679.41,678.36,0.27069645]
[1738035002766,0.24276738,679.4,678.37,0.27069645]
[1738035002964,0.24276738,679.42,678.38,0.27069645]
[1738035003168,0.24276738,679.41,678.39,0.27069645]
[1738035003366,0.24276738,679.42,678.34,0.27069645]
[1738035003570,0.24276738,679.4,678.4,0.27069645]
[1738035003773,0.24276738,679.39,678.41,0.27069645]
[1738035003970,1.39621721,679.43,678.33,0.29484174]
[1738035004172,0.24278351,679.42,678.34,0.27069004]
[1738035004568,1.39621721,679.43,678.34,0.27069004]
[1738035004874,1.10185282,679.43,678.35,0.29483305]
[1738035005072,1.10185282,679.43,678.36,0.27069004]
[1738035005373,1.10185282,679.43,678.37,0.29482435]
[1738035005577,1.10185282,679.43,678.38,0.27069004]
[1738035005774,1.10185282,679.44,678.39,0.29481566]
[1738035005976,1.10185282,679.44,678.4,0.27069004]
[1738035006270,1.10185282,679.44,678.4,0.56550136]
[1738035006475,0.24280248,679.43,678.41,0.27069004]
[1738035006670,1.10185282,679.44,678.4,0.29481132]
[1738035008379,1.10185282,679.6,678.4,0.29481132]
[1738035011776,1.10185282,679.59,678.4,0.29481132]
[1738035014184,1.10185282,679.53,678.4,0.29481132]
[1738035016585,0.24281964,679.52,678.4,0.29481132]
[1738035017386,1.34467246,679.52,678.4,0.29481132]
[1738035017581,0.24281964,679.51,678.4,0.29481132]
[1738035018290,0.242779,679.5,678.4,0.29481132]
[1738035018482,0.242779,679.51,678.4,0.29481132]
[1738035018680,0.242779,679.5,678.4,0.29481132]
[1738035018988,0.242779,679.49,678.4,0.29481132]
[1738035019189,1.10185282,679.52,678.4,0.29481132]
[1738035019388,0.24277642,679.51,678.4,0.29481132]
[1738035019589,0.24277642,679.51,678.41,0.27068095]
[1738035020290,1.10185282,679.41,678.41,0.27068095]
[1738035024384,1.10185282,679.38,678.42,1.10114767]
[1738035025692,1.10185282,679.38,678.43,0.27068519]
[1738035026389,1.10185282,679.38,678.42,1.10114767]
[1738035026588,1.10185282,679.38,678.43,0.27068392]
[1738035026989,1.10185282,679.38,678.42,1.10114767]
[1738035027189,1.10185282,679.38,678.43,0.27068158]
[1738035027389,1.10185282,679.38,678.41,0.27068158]
[1738035027584,1.10185282,679.38,678.4,1.39595899]
[1738035029186,1.10185282,679.38,678.41,0.27067995]
[1738035030385,1.10185282,679.38,678.4,1.39595899]
[1738035030585,1.10185282,679.44,678.41,0.27068072]
[1738035030791,1.10185282,679.44,678.4,0.29481132]
[1738035031297,0.242669,679.43,678.4,0.29481132]
[1738035032390,1.10185282,679.44,678.4,0.29481132]
[1738035032792,0.24268208,679.43,678.4,0.29481132]
[1738035032989,1.10185282,679.44,678.4,0.29481132]
[1738035033395,0.24268111,679.43,678.4,0.29481132]
[1738035034091,1.10185282,679.44,678.4,0.29481132]
[1738035034398,0.24267483,679.43,678.4,0.29481132]
[1738035034594,1.10185282,679.33,678.4,0.29481132]
[1738035037499,1.10185282,679.33,678.36,1.53748164]
[1738035037798,1.10185282,679.4,678.36,1.53748164]
[1738035037991,0.24270478,679.39,678.36,1.53748164]
[1738035039497,1.10185282,679.4,678.36,1.53748164]
[1738035039795,0.2427522,679.39,678.36,1.53748164]
[1738035040996,1.10185282,679.36,678.36,1.53748164]
[1738035041195,0.2427522,679.35,678.36,1.53748164]
[1738035042192,0.2427522,679.35,678.37,0.27072704]
[1738035043292,1.10185282,679.27,678.37,0.27072704]
[1738035043496,0.2427522,679.26,678.37,0.27072704]
[1738035044198,0.2427522,679.26,678.36,1.53748164]
[1738035045100,1.10185282,679.27,678.36,1.53748164]
[1738035045398,0.24273386,679.26,678.36,1.53748164]
[1738035045796,1.10185282,679.27,678.36,1.53748164]
[1738035046395,1.10185282,679.25,678.36,1.53748164]
[1738035047797,0.24272632,679.24,678.26,1.10114767]
[1738035047998,0.24272632,679.24,678.27,0.27074543]
[1738035048500,1.10185282,679.25,678.27,0.27074543]
[1738035049501,0.24273891,679.24,678.27,0.27074543]
[1738035049798,1.10185282,679.28,678.28,0.27074543]
[1738035049994,1.10185282,679.28,678.29,0.27074543]
[1738035050199,1.10185282,679.28,678.3,0.27074543]
[1738035050402,1.10185282,679.28,678.25,0.27074543]
[1738035050594,0.24274909,679.27,678.26,0.27074543]
[1738035050794,1.10185282,679.28,678.27,0.27074543]
[1738035050995,1.10185282,679.28,678.24,1.10114767]
[1738035051200,1.10185282,679.28,678.25,0.27074087]
[1738035052096,1.10185282,679.31,678.26,0.27074181]
[1738035052299,1.10185282,679.31,678.22,0.27074181]
[1738035052500,0.24279766,679.3,678.22,0.27074181]
[1738035052701,1.10185282,679.31,678.22,0.27074181]
[1738035054002,1.10185282,679.31,678.21,1.10114767]
[1738035054200,0.24280786,679.3,678.22,0.2707357]
[1738035054601,1.10185282,679.31,678.21,1.10114767]
[1738035054899,1.10185282,679.35,678.2,1.10114767]
[1738035058005,1.10185282,679.48,678.07,1.10114767]
[1738035058304,1.10185282,679.48,678.08,0.27073635]
[1738035059500,0.242815,679.47,678.09,0.27073757]
[1738035059801,0.242815,679.47,678.1,0.27073757]
[1738035059999,0.242815,679.47,678.08,0.27073757]
[1738035060202,0.242815,679.47,678.1,1.53779303]
[1738035060397,0.242815,679.47,678.11,0.27073757]
[1738035061106,1.10185282,679.46,678.11,0.27073757]
[1738035061306,1.10185282,679.46,678.12,0.29493305]
[1738035061506,1.10185282,679.46,678.13,0.27073757]
[1738035062100,1.10185282,679.46,678.14,0.29492435]
[1738035062908,0.24284507,679.45,678.14,0.29492435]
[1738035063300,0.24279615,679.44,678.14,0.29492435]
[1738035063502,0.24279615,679.45,678.14,0.29492435]
[1738035063706,0.24279615,679.44,678.14,0.29492435]
[1738035063903,0.24279615,679.45,678.14,0.29492435]
[1738035064103,0.24279615,679.44,678.14,0.29492435]
[1738035064309,0.24279615,679.45,678.15,0.270758]
[1738035064612,0.24279615,679.44,678.15,0.270758]
[1738035064808,0.24279615,679.45,678.15,0.270758]
[1738035065008,1.10185282,679.4,678.15,0.270758]
[1738035065208,0.24279615,679.39,678.15,0.270758]
[1738035065805,1.10185282,679.4,678.16,0.29491565]
[1738035067110,0.24269138,679.39,678.17,0.27073115]
[1738035067311,0.24269138,679.39,678.18,0.29490695]
[1738035067611,0.24269138,679.39,678.27,1.10114767]